Cogmind - Beta 13 @@@ ROGUE MODE // 2024.03.10 @ 16:16:52 Player: Qwertychrish Result: Destroyed by S-27 Virus with Autogun Performance ------------- Evolutions (4) 2000 Regions Visited (10) 2000 Robots Destroyed (61) 305 Value Destroyed (2103) 2103 Prototype IDs (2) 40 Alien Tech Used (0) 0 Bonus (300) 300 TOTAL SCORE: 6748 Bonus ------- Aligned with FarCom 300 Cogmind --------- Core Integrity 0/850 Matter 25/300 Energy 100/100 System Corruption 12% Temperature Cool (0) Movement Core (50) Location -6/Factory Parts ------- > --- POWER (2) -------- (None) > --- PROPULSION (4) --- (None) > --- UTILITY (6) ------ (None) > --- WEAPON (3) ------- (None) > --- INVENTORY (5) ---- Large Storage Unit Advanced Terrain Scan Processor Transmission Jammer Hacking Suite Heavy Ion Cannon Peak State ------------ > --- POWER ------------ Micro Nuclear Core Light Angular Momentum Engine > --- PROPULSION ------- Improved Titanium Leg Improved Titanium Leg Improved Titanium Leg Improved Titanium Leg > --- UTILITY ---------- High-capacity Storage Unit Advanced Visual Processing Unit Improved Signal Interpreter Advanced Targeting Computer Reaction Control System System Shield > --- WEAPON ----------- Coil Gun Advanced Assault Cannon Great Maul > --- INVENTORY -------- Light Angular Momentum Engine Light Angular Momentum Engine Light Angular Momentum Engine Light Angular Momentum Engine Light Angular Momentum Engine Improved Aluminum Leg Gravmag System Gravmag System Gravmag System Xenon Bombardment Thruster Cooled VTOL Module Large Storage Unit Kinecellerator Kinecellerator Transmission Jammer Long-range Tractor Beam Heavy Laser Heavy Ion Cannon Gauss Rifle Long-range Missile Launcher [Rating: 61] Favorites ----------- Power Light Ion Engine Engine Light Ion Engine Power Core Light Nuclear Core Propulsion Aluminum Leg Treads Armored Treads Leg Aluminum Leg Hover Unit Gravmag System Flight Unit Xenon Bombardment Thruster Utility Advanced Targeting Computer Device Reaction Control System Storage Large Storage Unit Processor Advanced Targeting Computer Hackware System Shield Weapon Enhanced Autogun Energy Gun Medium Laser Ballistic Gun Enhanced Autogun Ballistic Cannon Advanced Assault Cannon Launcher Mini Grenade Launcher Impact Weapon Great Maul Build | -11 -10 -9 -9 -9 -8 -8 -7 -7 -7 -6 ------- Run | Yrd Mat Mat Min Exi Min Mat Fac Was Fac Fac Slots Evolved 8 | . . 2 . . . 2 2 . . 2 Power 1 | . . . . . . . . . . 1 Propulsion 2 | . . 1 . . . 1 . . . . Utility 4 | . . 1 . . . 1 1 . . 1 Weapon 1 | . . . . . . . 1 . . . Parts Attached 73 | 6 4 12 . . . 12 2 5 17 15 Power 8 | 1 1 1 . . . 1 . . 2 2 Engine 5 | 1 1 1 . . . . . . . 2 Core 3 | . . . . . . 1 . . 2 . Reactor . | . . . . . . . . . . . Propulsion 26 | 2 . 2 . . . 5 1 2 6 8 Treads 1 | . . . . . . . 1 . . . Leg 17 | 2 . 2 . . . 5 . . 4 4 Wheel . | . . . . . . . . . . . Hover 5 | . . . . . . . . . 1 4 Flight 3 | . . . . . . . . 2 1 . Utility 19 | 1 1 6 . . . 1 . 2 5 3 Device 5 | . . 1 . . . . . . 2 2 Storage 7 | 1 . 2 . . . . . . 3 1 Processor 6 | . 1 3 . . . 1 . 1 . . Hackware 1 | . . . . . . . . 1 . . Protection . | . . . . . . . . . . . Artifact . | . . . . . . . . . . . Weapon 20 | 2 2 3 . . . 5 1 1 4 2 Energy Gun 4 | 1 1 1 . . . . . . . 1 Energy Cannon . | . . . . . . . . . . . Ballistic Gun 12 | 1 1 2 . . . 3 1 . 3 1 Ballistic Cannon 1 | . . . . . . . . . 1 . Launcher 2 | . . . . . . 2 . . . . Special Weapon . | . . . . . . . . . . . Impact Weapon 1 | . . . . . . . . 1 . . Slashing Weapon . | . . . . . . . . . . . Piercing Weapon . | . . . . . . . . . . . Special Melee Weapon . | . . . . . . . . . . . Unidentified Prototypes 2 | . . 1 . . . . . . 1 . Parts Lost 30 | . . . . . . 10 . 2 . 18 Power 5 | . . . . . . 1 . 1 . 3 Propulsion 15 | . . . . . . 6 . . . 9 Utility 3 | . . . . . . . . 1 . 2 Weapon 7 | . . . . . . 3 . . . 4 Highest Loss Streak 7 | . . . . . . 6 . 2 . 7 To Critical Strikes 1 | . . . . . . . . 1 . . Average Slot Usage (%) 90 | . 97 99 100 100 100 85 69 72 96 80 Engine 5 | . 14 11 11 11 11 4 . . . 4 Core 2 | . . . . . . 1 7 5 6 1 Leg 25 | . 28 33 33 33 33 27 7 . 25 18 Hover 1 | . . . . . . . . . . 3 Storage 8 | . 14 11 11 11 11 9 7 1 6 5 Processor 21 | . 11 20 22 22 22 24 23 28 23 19 Hackware 2 | . . . . . . . . 5 7 4 Energy Gun 1 | . 14 6 . . . . . . . 1 Ballistic Gun 12 | . 14 15 22 22 22 15 11 1 9 5 Ballistic Cannon 1 | . . . . . . . . . 2 4 Impact Weapon 2 | . . . . . . . . 7 7 4 Naked Turns 10 | . . . . . . . . . . 10 Heaviest Build 71 | 14 15 29 29 29 29 29 33 10 60 71 Greatest Support 80 | 20 20 30 30 30 30 40 15 12 80 80 Greatest Overweight (x) 19 | 2 . . . . . 2 2 . . 19 Average Overweight (x) . | . . . . . . . 1 . . . Largest Inventory Capacity 20 | 8 8 15 15 15 15 15 15 15 20 20 Average Capacity 15 | 7 8 11 15 15 15 15 15 7 16 18 Most Carried 20 | 7 8 15 15 15 15 15 13 12 19 20 Average Carried 13 | 5 7 11 15 15 14 13 12 5 11 18 Final Capacity 20 | 8 8 15 15 15 15 15 15 5 20 5 Final Carried 19 | 6 8 15 15 15 15 11 13 5 19 5 Class Distribution -------------------- 98% | Mutant Dominant Class ---------------- Mutant | -10/Materials Mutant | -9/Materials Mutant | -9/Mines Mutant | -9/Exiles Mutant | -8/Mines Mutant | -8/Materials Gunner | -7/Factory Mutant | -7/Waste Mutant | -7/Factory Mutant | -6/Factory Resources | -11 -10 -9 -9 -9 -8 -8 -7 -7 -7 -6 ----------- Run | Yrd Mat Mat Min Exi Min Mat Fac Was Fac Fac Matter Collected 1708 | 202 121 211 . . 18 666 . . 257 233 Remotely . | . . . . . . . . . . . Salvage Created 2007 | . 153 243 . . . 1081 . . 361 169 Parts 146 | . 15 25 . . . 83 . . 19 4 Haulers Intercepted . | . . . . . . . . . . . Recyclers Shooed 4 | . . . . . . 3 . . . 1 Parts Field Recycled . | . . . . . . . . . . . Retrieved Matter . | . . . . . . . . . . . Parts Self-Destructed . | . . . . . . . . . . . Prevented . | . . . . . . . . . . . Kills | -11 -10 -9 -9 -9 -8 -8 -7 -7 -7 -6 ------- Run | Yrd Mat Mat Min Exi Min Mat Fac Was Fac Fac Combat Hostiles Destroyed 51 | . 5 10 . . . 23 . . 6 7 Guns 40 | . 5 10 . . . 19 . . 2 4 Cannons 7 | . . . . . . . . . 4 3 AOE 4 | . . . . . . 4 . . . . Classes Destroyed 13 | . 3 1 . . . 6 . . 3 . Worker 3 | . . . . . . 3 . . . . Builder 1 | . . . . . . 1 . . . . Tunneler 1 | . 1 . . . . . . . . . Recycler 1 | . . . . . . . . . 1 . Mechanic 1 | . . . . . . . . . 1 . Watcher 3 | . . . . . . 2 . . 1 . Swarmer 18 | . 3 7 . . . 5 . . . 3 Grunt 11 | . 2 1 . . . 6 . . 2 . Sentry 11 | . . 2 . . . 8 . . 1 . Specialist 2 | . . . . . . 2 . . . . Hunter 3 | . . . . . . 1 . . 1 1 Programmer 5 | . . . . . . . . . 2 3 Heavy 1 | . . . . . . 1 . . . . Best Kill Streak 9 | . 3 4 . . . 9 . . 3 3 Combat Bots Only 7 | . 3 4 . . . 7 . . 2 3 Max Kills in Single Turn 3 | . 2 1 . . . 3 . . 2 1 Gunslinging . | . . . . . . . . . . . Exploded 1 | . . . . . . 1 . . . . Melee . | . . . . . . . . . . . Uniques/NPCs Destroyed . | . . . . . . . . . . . Combat | -11 -10 -9 -9 -9 -8 -8 -7 -7 -7 -6 -------- Run | Yrd Mat Mat Min Exi Min Mat Fac Was Fac Fac Hostile Shots Fired 452 | . 20 43 . . . 148 . 3 50 188 Missed 141 | . 5 13 . . . 53 . 1 17 52 Damage Taken 5111 | . 134 256 . . . 1479 . 98 480 2664 Core 1288 | . 32 41 . . . 220 . 65 79 851 Absorbed by Shields . | . . . . . . . . . . . Core Remaining (%) 83 | 100 87 . . . 89 60 . . 79 . Volleys Fired 174 | . 11 21 . . . 82 . . 17 43 Largest 2 | . 2 2 . . . 2 . . 2 2 Hottest 99 | . 73 79 . . . 50 . . 76 99 Shots Fired 314 | . 22 42 . . . 140 . 1 35 74 Gun 269 | . 22 42 . . . 135 . . 27 43 Cannon 38 | . . . . . . . . . 7 31 Launcher 7 | . . . . . . 5 . 1 1 . Special . | . . . . . . . . . . . Kinetic 273 | . 11 31 . . . 135 . . 34 62 Thermal 34 | . 11 11 . . . . . . . 12 Explosive 7 | . . . . . . 5 . 1 1 . Electromagnetic . | . . . . . . . . . . . Robot Hit Streak 33 | . 5 8 . . . 33 . 6 12 10 Robot Miss Streak 5 | . 2 4 . . . 4 . . 2 5 Penetration Max 1 | . . . . . . . . . 1 1 Secondary Targets 4 | . 1 . . . . 3 . . . . Max Gunslinging Chain 1 | . 1 . . . . 1 . . . . Shots Hit Robots 232 | . 14 25 . . . 111 . 1 27 54 Core Hits 103 | . 8 12 . . . 55 . . 13 15 Critical Kills 1 | . . 1 . . . . . . . . Critical Parts Destroyed 4 | . . . . . . 1 . . 2 1 Critical Strikes 7 | . 1 1 . . . 1 . . 2 2 Burn 2 | . 1 . . . . . . . . 1 Destroy 3 | . . 1 . . . 1 . . 1 . Smash 2 | . . . . . . . . . 1 1 Melee Attacks 7 | . . . . . . . . . 2 5 Impact 7 | . . . . . . . . . 2 5 Slashing . | . . . . . . . . . . . Piercing . | . . . . . . . . . . . Sneak Attacks . | . . . . . . . . . . . Combat Hostiles . | . . . . . . . . . . . Follow-up Attacks . | . . . . . . . . . . . Damage Inflicted 5249 | . 203 392 . . . 2361 . 76 733 1484 Guns 3610 | . 203 390 . . . 1806 . . 435 776 Cannons 755 | . . . . . . . . . 183 572 Explosions 662 | . . . . . . 553 . 76 33 . Melee 218 | . . . . . . . . . 82 136 Ramming 4 | . . 2 . . . 2 . . . . Kinetic 4000 | . 90 348 . . . 1806 . . 618 1138 Thermal 365 | . 113 42 . . . . . . . 210 Explosive 662 | . . . . . . 553 . 76 33 . Electromagnetic . | . . . . . . . . . . . Impact 218 | . . . . . . . . . 82 136 Slashing . | . . . . . . . . . . . Piercing . | . . . . . . . . . . . Highest Corruption 12 | . . . . . . . . 9 10 12 Average Corruption 8 | . . . . . . . . 9 9 7 Corruption Purged . | . . . . . . . . . . . Corruption Blocked . | . . . . . . . . . . . Effects 62 | . . . . . . . . 1 35 26 Message Errors 11 | . . . . . . . . . 5 6 Matter Fused 12 | . . . . . . . . . 8 4 Heat Flow Errors 11 | . . . . . . . . . 7 4 Energy Discharges 6 | . . . . . . . . . 4 2 Parts Rejected 1 | . . . . . . . . . 1 . Parts Fused 2 | . . . . . . . . . 2 . Data Loss (minor) 6 | . . . . . . . . . 2 4 Data Loss (major) 2 | . . . . . . . . . 2 . Misfires 6 | . . . . . . . . 1 3 2 Alerts 1 | . . . . . . . . . . 1 Misdirections 2 | . . . . . . . . . . 2 Weapon Failures 2 | . . . . . . . . . 1 1 Overload Shots . | . . . . . . . . . . . Overflow Damage 183 | . . . . . . 27 . . 82 74 Projectiles 2 | . . . . . . . . . . 2 Explosions 27 | . . . . . . 27 . . . . Melee 154 | . . . . . . . . . 82 72 Knockbacks 10 | . . . . . . . . . 2 8 Impact . | . . . . . . . . . . . Kinetic 10 | . . . . . . . . . 2 8 Secondary . | . . . . . . . . . . . Self-Inflicted Damage 158 | . . . . . . . . 19 139 . Shots 4 | . . . . . . . . 1 3 . Rammed . | . . . . . . . . . . . Targets Rammed 2 | . . 1 . . . 1 . . . . Kicked 2 | . . 1 . . . 1 . . . . Crushed . | . . . . . . . . . . . Highest Temperature 269 | . 90 81 . . . 27 . . 269 194 Average Temperature 47 | . 38 25 . . . 9 . . 88 47 Received Heat Transfer 708 | . 30 . . . . 432 . . 102 144 Siege Activations . | . . . . . . . . . . . Robots Corrupted . | . . . . . . . . . . . Combat Hostiles . | . . . . . . . . . . . Parts Fried 2 | . . . . . . . . . 2 . Impact Corruptions 4 | . . . . . . . . . 2 2 Robots Melted . | . . . . . . . . . . . Combat Hostiles . | . . . . . . . . . . . Parts Melted 3 | . 2 . . . . . . . . 1 Heat Transferred 925 | . 407 111 . . . . . . . 407 Parts Sabotaged . | . . . . . . . . . . . Parts Stolen . | . . . . . . . . . . . Parts Stripped . | . . . . . . . . . . . Power Chain Reactions . | . . . . . . . . . . . Alert | -11 -10 -9 -9 -9 -8 -8 -7 -7 -7 -6 ------- Run | Yrd Mat Mat Min Exi Min Mat Fac Was Fac Fac Peak Influence 375 | . 70 299 38 . . 353 100 85 375 241 Initial 109 | . . 22 38 . . . 100 35 59 109 Average 119 | . 35 117 38 . . 179 100 56 154 96 Maximum Alert Level 1 | . . 1 . . . 1 . . 1 1 Low Security (%) 76 | 100 100 82 100 . 100 55 100 100 63 87 Level 1 23 | . . 17 . . . 44 . . 36 12 Level 2 . | . . . . . . . . . . . Level 3 . | . . . . . . . . . . . Level 4 . | . . . . . . . . . . . Level 5 . | . . . . . . . . . . . High Security . | . . . . . . . . . . . Max Security . | . . . . . . . . . . . Squads Dispatched 14 | . 1 1 . . . 7 . . 3 2 Investigation 1 | . 1 . . . . . . . . . Extermination 3 | . . . . . . . . . 2 1 Reinforcement 7 | . . 1 . . . 4 . . 1 1 Assault . | . . . . . . . . . . . Garrison 3 | . . . . . . 3 . . . . Intercept . | . . . . . . . . . . . Searches Triggered . | . . . . . . . . . . . Construction Impeded 2 | . . . . . . 1 . . 1 . Haulers Reinforced . | . . . . . . . . . . . Active Scanning Responses . | . . . . . . . . . . . Cargo Convoy Interrupts . | . . . . . . . . . . . Stealth | -11 -10 -9 -9 -9 -8 -8 -7 -7 -7 -6 --------- Run | Yrd Mat Mat Min Exi Min Mat Fac Was Fac Fac Distress Signals 3 | . . . . . . 2 . . 1 . Communications Jammed . | . . . . . . . . . . . Distress Signals . | . . . . . . . . . . . Times Spotted 103 | . 5 13 . . . 34 . 8 14 29 Peak Tracking Total 12 | . 3 5 . . . 8 . 8 4 12 Tactical Retreats 1 | . . . . . . . . 1 . . Traps | -11 -10 -9 -9 -9 -8 -8 -7 -7 -7 -6 ------- Run | Yrd Mat Mat Min Exi Min Mat Fac Was Fac Fac Traps Triggered 6 | . 1 1 . . . . 1 . 1 2 Indirectly . | . . . . . . . . . . . Trap Hack Attempts . | . . . . . . . . . . . Triggered . | . . . . . . . . . . . Disarmed . | . . . . . . . . . . . Reprogrammed . | . . . . . . . . . . . Reused . | . . . . . . . . . . . Traps Extracted . | . . . . . . . . . . . Installed . | . . . . . . . . . . . Triggered . | . . . . . . . . . . . Machines | -11 -10 -9 -9 -9 -8 -8 -7 -7 -7 -6 ---------- Run | Yrd Mat Mat Min Exi Min Mat Fac Was Fac Fac Machines Disabled 10 | . . . . . . 2 . . 7 1 Max in Single Turn 4 | . . . . . . 1 . . 4 1 Machines Repaired . | . . . . . . . . . . . Machines Dismantled . | . . . . . . . . . . . Machines Sabotaged . | . . . . . . . . . . . Overloaded Fab Kills . | . . . . . . . . . . . Hacking | -11 -10 -9 -9 -9 -8 -8 -7 -7 -7 -6 --------- Run | Yrd Mat Mat Min Exi Min Mat Fac Was Fac Fac Machines Accessed 19 | . 3 2 . 2 . 6 . . 1 5 Terminals 17 | . 3 2 . . . 6 . . 1 5 Fabricators . | . . . . . . . . . . . Repair Stations . | . . . . . . . . . . . Recycling Units . | . . . . . . . . . . . Scanalyzers . | . . . . . . . . . . . Garrison Access . | . . . . . . . . . . . Total Hacks 46 | . 10 4 . 10 . 14 . . 1 7 Successful 29 | . 6 2 . 10 . 8 . . . 3 Failed 17 | . 4 2 . . . 6 . . 1 4 Catastrophic 5 | . . 2 . . . 1 . . . 2 Database Lockouts . | . . . . . . . . . . . Manual 31 | . 7 3 . 1 . 13 . . 1 6 Terminals 36 | . 10 4 . . . 14 . . 1 7 Fabricators . | . . . . . . . . . . . Repair Stations . | . . . . . . . . . . . Recycling Units . | . . . . . . . . . . . Scanalyzers . | . . . . . . . . . . . Garrison Access . | . . . . . . . . . . . Terminal Hacks 15 | . 2 . . 10 . 2 . . . 1 Record 10 | . . . . 10 . . . . . . Robot Analysis 1 | . 1 . . . . . . . . . Open DSF 1 | . . . . . . . . . . 1 Unreport Threat 3 | . 1 . . . . 2 . . . . Fabricator Hacks . | . . . . . . . . . . . Repair Station Hacks . | . . . . . . . . . . . Recycling Unit Hacks . | . . . . . . . . . . . Scanalyzer . | . . . . . . . . . . . Garrison Access Hacks . | . . . . . . . . . . . Unauthorized Hacks 14 | . 4 2 . . . 6 . . . 2 Terminals 14 | . 4 2 . . . 6 . . . 2 Track 4 | . 1 1 . . . 2 . . . . Botnet 10 | . 3 1 . . . 4 . . . 2 Fabricators . | . . . . . . . . . . . Repair Stations . | . . . . . . . . . . . Recycling Units . | . . . . . . . . . . . Scanalyzers . | . . . . . . . . . . . Garrison Access . | . . . . . . . . . . . Data Cores Recovered . | . . . . . . . . . . . Used . | . . . . . . . . . . . Hacking Detections 13 | . 2 2 . . . 6 . . 1 2 Full Trace Events . | . . . . . . . . . . . Feedback Events . | . . . . . . . . . . . Feedback Blocked . | . . . . . . . . . . . Robot Schematics Acquired . | . . . . . . . . . . . Robots Built . | . . . . . . . . . . . Authchips . | . . . . . . . . . . . Time . | . . . . . . . . . . . Total Robot Build Rating . | . . . . . . . . . . . Part Schematics Acquired . | . . . . . . . . . . . Parts Built . | . . . . . . . . . . . Authchips . | . . . . . . . . . . . Time . | . . . . . . . . . . . Total Part Build Rating . | . . . . . . . . . . . Parts Repaired . | . . . . . . . . . . . Time . | . . . . . . . . . . . Parts Recycled . | . . . . . . . . . . . Recycled Matter . | . . . . . . . . . . . Retrieved Matter . | . . . . . . . . . . . Retrieved Components . | . . . . . . . . . . . Parts Scanalyzed . | . . . . . . . . . . . Part Schematics Acquired . | . . . . . . . . . . . Parts Damaged . | . . . . . . . . . . . Bothacking | -11 -10 -9 -9 -9 -8 -8 -7 -7 -7 -6 ------------ Run | Yrd Mat Mat Min Exi Min Mat Fac Was Fac Fac Used RIF Installer . | . . . . . . . . . . . Robots Hacked . | . . . . . . . . . . . Non-combat . | . . . . . . . . . . . Combat . | . . . . . . . . . . . Robot Hacks Applied . | . . . . . . . . . . . Relay Couplers Released 8 | . . . . . . . . . . 8 Programmers 8 | . . . . . . . . . . 8 Fabnet Peak Effective % . | . . . . . . . . . . . Robots Rewired . | . . . . . . . . . . . Allies Hacked . | . . . . . . . . . . . Hacks Repelled . | . . . . . . . . . . . Allies | -11 -10 -9 -9 -9 -8 -8 -7 -7 -7 -6 -------- Run | Yrd Mat Mat Min Exi Min Mat Fac Was Fac Fac Total Allies . | . . . . . . . . . . . Largest Group . | . . . . . . . . . . . Highest-Rated Group . | . . . . . . . . . . . Highest-Rated Ally . | . . . . . . . . . . . Total Orders . | . . . . . . . . . . . Ally Attacks . | . . . . . . . . . . . Total Damage . | . . . . . . . . . . . Kills . | . . . . . . . . . . . Allies Corrupted . | . . . . . . . . . . . Allies Melted . | . . . . . . . . . . . Intel | -11 -10 -9 -9 -9 -8 -8 -7 -7 -7 -6 ------- Run | Yrd Mat Mat Min Exi Min Mat Fac Was Fac Fac Robot Analysis Total 1 | . 1 . . . . . . . . . Derelict Logs Recovered . | . . . . . . . . . . . Drone Launches . | . . . . . . . . . . . Drone Recoveries . | . . . . . . . . . . . Exploration | -11 -10 -9 -9 -9 -8 -8 -7 -7 -7 -6 ------------- Run | Yrd Mat Mat Min Exi Min Mat Fac Was Fac Fac Turns Passed 4863 | 64 304 493 26 465 250 1080 89 43 891 1158 Spaces Moved 3297 | 45 191 314 22 388 202 555 39 84 771 686 Core 56 | 15 . . . . . . . . . 41 Treads . | . . . . . . . . . . . Legs 2748 | 30 191 314 22 388 202 555 39 . 527 480 Wheels . | . . . . . . . . . . . Hover 165 | . . . . . . . . . . 165 Flight 328 | . . . . . . . . 84 244 . Fastest Speed 34 | 50 120 120 120 120 120 120 190 37 34 50 Average Speed 120 | 107 120 120 120 120 120 135 220 38 99 139 Slowest Speed 1000 | 190 120 120 120 120 120 260 260 40 130 1000 Overloaded Moves . | . . . . . . . . . . . Propulsion Burnouts . | . . . . . . . . . . . Robots Hopped 2 | . . . . . . . . . 2 . Cave-ins Triggered . | . . . . . . . . . . . Exploration Rate (%) 38 | 5 36 29 6 93 69 54 2 82 27 22 Regions Visited 10 Branch Regions 3 Pre-discovered Areas . | . . . . . . . . . . . Known Exits Taken 1 | . . . . . . . . . 1 . Unknown Exits Taken 7 | 1 1 1 1 1 1 1 . . . . Scrap Searched 1 | . . . . . 1 . . . . . Spaces Dug . | . . . . . . . . . . . Terrain Destroyed 108 | . . . . . . 42 . 10 52 4 Melee . | . . . . . . . . . . . Projectile 5 | . . . . . . . . . 1 4 AOE 103 | . . . . . . 42 . 10 51 . Terrain Rammed . | . . . . . . . . . . . Walls Destroyed . | . . . . . . . . . . . Machines Disabled . | . . . . . . . . . . . Actions | -11 -10 -9 -9 -9 -8 -8 -7 -7 -7 -6 --------- Run | Yrd Mat Mat Min Exi Min Mat Fac Was Fac Fac Total 3919 | 58 248 399 21 387 210 797 43 98 849 809 Wait 258 | 1 24 27 . . 7 137 . 1 25 36 Move 3283 | 44 190 313 21 387 201 554 39 83 766 685 Hop 2 | . . . . . . . . . 2 . Pick Up 68 | 7 9 14 . . 1 6 2 . 16 13 Fast Attach 29 | 5 3 3 . . . 3 2 . 6 7 Attach 24 | 1 . 2 . . . 6 . 4 4 7 Detach 3 | . . 1 . . . . . 1 1 . Swap 20 | . 1 7 . . . 3 . 1 7 1 Drop 47 | . 10 10 . . 1 5 . 8 3 10 Fire 174 | . 11 21 . . . 82 . . 17 43 Melee 7 | . . . . . . . . . 2 5 Ram 1 | . . . . . . . . . . 1 Kick 2 | . . 1 . . . 1 . . . . Crush . | . . . . . . . . . . . Escape Stasis 1 | . . . . . . . . . . 1 Rewire . | . . . . . . . . . . . Trap . | . . . . . . . . . . . Miscellaneous . | . . . . . . . . . . . Route ------- -11/Scrapyard -10/Materials -9/Materials (discovered 2 exits: [*Min] / [*Sto]) -9/Mines -9/Exiles (discovered 2 exits: [*Min x2]) -8/Mines -8/Materials -7/Factory -7/Waste -7/Factory -6/Factory History --------- Turn | Location | Event 11 | -11/Scrapyard | Discovered new exit (range 15) 65 | -11/Scrapyard | Entered Materials 252 | -10/Materials | Discovered new exit (range 16) 303 | -10/Materials | Build established: Mutant 369 | -10/Materials | Entered another Materials area 369 | -9/Materials | Evolved 2 slots: Propulsion x1, Utility x1 371 | -9/Materials | Discovered new exit (range 6) 761 | -9/Materials | Discovered new exit (range 20) 862 | -9/Materials | Entered Mines 879 | -9/Mines | Met a Derelict bent on vengeance 882 | -9/Mines | Deemed a non-threat by the Exiles lab entrance 883 | -9/Mines | Discovered new exit (range 5) 888 | -9/Mines | Entered Exiles 905 | -9/Exiles | Discovered new exit (range 15) 924 | -9/Exiles | Met 8R-AWN 947 | -9/Exiles | Met EX-HEX 982 | -9/Exiles | Met EX-BIN 1007 | -9/Exiles | Aligned with FarCom system 1008 | -9/Exiles | Given EX-Vault access code 1052 | -9/Exiles | Opened EX-Vault 1074 | -9/Exiles | Warned to stay clear of 0b10 Research branches 1103 | -9/Exiles | Met EX-DEC 1170 | -9/Exiles | Visited The Gauntlet 1340 | -9/Exiles | Discovered new exit (range 12) 1353 | -9/Exiles | Entered Mines 1580 | -8/Mines | Discovered new exit (range 16) 1603 | -8/Mines | Entered Materials 1603 | -8/Materials | Evolved 2 slots: Propulsion x1, Utility x1 2168 | -8/Materials | Garrison activated, responded to threat 2242 | -8/Materials | Lost 6 parts (1p4n1w) 2464 | -8/Materials | Lost 4 parts (2n2w) 2472 | -8/Materials | Destroyed 7 combat bots 2677 | -8/Materials | Discovered new exit (range 4) 2683 | -8/Materials | Entered Factory 2683 | -7/Factory | Evolved 2 slots: Utility x1, Weapon x1 2702 | -7/Factory | Discovered new exit (range 20) 2772 | -7/Factory | Sucked down chute 2772 | -7/Factory | Entered Waste 2787 | -7/Waste | EMP discharged 2791 | -7/Waste | Spotted C-40 Crusher 2793 | -7/Waste | Spotted C-40 Crusher 2794 | -7/Waste | Spotted C-40 Crusher 2795 | -7/Waste | Spotted C-40 Crusher 2801 | -7/Waste | Crushed by Compactor (1 part destroyed, 1 dropped) 2802 | -7/Waste | Spotted C-40 Crusher 2804 | -7/Waste | Spotted C-40 Crusher 2809 | -7/Waste | Discovered new exit (range 14) 2815 | -7/Waste | Identified exit to Factory 2815 | -7/Waste | Entered Factory 3357 | -7/Factory | System corruption reached 10% 3475 | -7/Factory | Discovered new exit (range 12) 3530 | -7/Factory | Identified exit to Factory 3706 | -7/Factory | Entered another Factory area 3706 | -6/Factory | Evolved 2 slots: Power x1, Utility x1 4568 | -6/Factory | System corruption reached 10% 4630 | -6/Factory | Lost 7 parts (1p3n1u2w) 4834 | -6/Factory | Core integrity fell below 50% 4838 | -6/Factory | Released all parts (8) 4849 | -6/Factory | Core integrity fell below 20% 4864 | -6/Factory | Destroyed by S-27 Virus with Autogun Last Messages --------------- 04838_ Released Adv. Targeting Computer. 04838_ Released Lrg. Storage Unit. 04838_ Acquired Flexi-carbon Leg. 04842_ Knocked back. 04846_ U-05 Engineer builds a Wall. 04846_ Knocked back. 04846_ Acquired Lrg. Storage Unit. 04848_ Imp. Aluminum Leg destroyed. 04848_ Critical hit (Blast). 04848_ Knocked back. 04848_ U-05 Engineer builds a Wall. 04851_ System corrupted: Heat flow error (+180). 04852_ U-05 Engineer builds a Wall. 04852_ Penetrated by Slug. 04852_ Flexi-carbon Leg destroyed. 04852_ Knocked back. 04854_ Penetrated by Slug. 04854_ Flexi-carbon Leg destroyed. 04854_ Knocked back. 04860_ K-01 Serf cleans the Power Conduit. Map ----- +----------------------------------------------------+ | ?????????????????????????????????????????????????? | | ?????????????????????????????????????????????????? | | ?????????????????????????????????????????????????? | | ?????????????????????????????????????????????????? | | ?????????????????????????????????????????????????? | | ?????????????????????????????????????????????????? | | ?????????????????????????????????????????????????? | | ?????????????????????????????????????????????????? | | ?????????????????????????????????????????????????? | | ?????????????????????????????????????????????????? | | ?????????????????????????????????????????????????? | | ?????????????????????????????????????????????????? | | ?????????????????????????????????????????????????? | | ?????????????????????????????????????????????????? | | ?????????????????????????????????????????????????? | | ??????????????????###??????????? ???????????????? | | ????????????????? ??? ??? t???????????? | | ????????????????? ???????????? | | ??????????????""""" """"""""" ?????????????? | | ??????????????? k ??????????????? | | ?????????????"""""" """"""""" #???????????????? | | ??????????? k #???????????????? | | ???????+ """"""""" """"""""" #???????????????? | | ???????# k #???????????????? | | ???????# """"""""" !/ #???????????????? | | ???????# @ !/ #???????????????? | | ???????# """"""""" ! #????Y??????????? | | ???????# #???????????????? | | ???????# ss #???????????????? | | ?????????##### #################???????????????? | | ??????#####??# ss#???????????????????????????????? | | ??????# ??# s#??????#????????????????????????? | | ??????# ?# #???"" #????????????????????????? | | ??????# ?# #???"" #????????????????????????? | | ??????# # #??""" #????????????????????????? | | ??????# # #?? #????????????????????????? | | ??????# + #?[[[ #????????????????????????? | | ??????# #g #?[[[ #????????????????????????? | | ??????# #g %# [[[ #????????????????????????? | | ??????# #g # #????????????????????????? | | ??????# / + #????????????????????????? | | ??????# #H # #????????????????????????? | | ??????# # # ! #????????????????????????? | | +###??######## ########????????????????????????? | | ########## #??????????????????????????????? | | []* ! #??????????????????????????????? | | !%! [!! % #??????????????????????????????? | | %!%!=* #??????????????????????????????? | | % ##"####### #??????????????????????????????? | | #?????##########??????????????????????????????? | +----------------------------------------------------+ Best States ------------- Heat Dissipation 37 Energy Generation 28 Energy Capacity 250 Matter Stores 300 Matter Capacity 400 Sight Range 20 Terrain Scan Range 16 Terrain Scan Density 10 Evasion (%) 71 Targeting Accuracy 16 Defensive Hacking 10 Item Schematics ----------------- None Robot Schematics ------------------ None Fabricated ------------ Nothing Alien Tech Used ----------------- None Achievements -------------- None Challenges ------------ None Game ------ Seed SmallNovaBox Manual? 0 Play Time 01:01:26 Cumulative 56.2 hours Start 2024.03.10 @ 03:49:21 End 2024.03.10 @ 16:16:52 Sessions 2 Manual Loads 0 Difficulty Rogue Special Mode None Game No. 48 Rogue 48 Adventurer 0 Explorer 0 Win Type - Total 0 Types 0/0/0/0/0/0/0/0/0 Lore% 34 Gallery% 41 Achievement% 32 Wizard Run 0 Options --------- Layout 0 ASCII 0 Keyboard 0 Movement Numpad Keybinds 0 Fullscreen 1 Font 18/SmallcapsGlow Map View 76x50 Zoom Use 0% Tactical HUD 1 Map Filters NONE Filters NONE Steam 1 RUN: 5b7627f1-32d0-4c04-8b5e-0443658e58ce